Cogmind - Beta 17.1 @@@ ROGUE MODE // 2026.09.24 @ 15:38:59 Player: Miniluz Result: Destroyed by G-34 Mercenary with Small Laser Performance ------------- Evolutions (0) 0 Regions Visited (1) 200 Robots Destroyed (41) 205 Value Destroyed (782) 782 Prototype IDs (0) 0 Alien Tech Used (0) 0 Bonus (0) 0 TOTAL SCORE: 1187 Bonus ------- None Cogmind --------- Core Integrity 0/250 Matter 246/300 Energy 104/125 System Corruption 1% Temperature Warm (110) Movement Treading (160) Location -10/Materials Parts ------- > --- POWER (1) -------- Light Ion Engine > --- PROPULSION (2) --- Light Treads Light Treads > --- UTILITY (2) ------ Medium Storage Unit Signal Interpreter > --- WEAPON (2) ------- Assault Rifle Mining Laser > --- INVENTORY (10) --- Light Ion Engine Light Treads Light Treads Sensor Array Seismic Detector ECM Suite Hacking Suite Light Assault Rifle Grenade Launcher Grenade Launcher Peak State ------------ > --- POWER ------------ Ion Engine > --- PROPULSION ------- Aluminum Leg Aluminum Leg > --- UTILITY ---------- Medium Storage Unit Seismic Detector > --- WEAPON ----------- Small Laser Grenade Launcher > --- INVENTORY -------- Ion Engine Light Treads Wheel Terrain Scanner Improved Terrain Scanner Light Armor Plating Small Laser Mining Laser [Rating: 8] Favorites ----------- Power Ion Engine Engine Ion Engine Propulsion Light Treads Treads Light Treads Leg Aluminum Leg Utility Medium Storage Unit Device Seismic Detector Storage Medium Storage Unit Processor Signal Interpreter Protection Light Armor Plating Weapon Assault Rifle Energy Gun Small Laser Ballistic Gun Assault Rifle Launcher Grenade Launcher Special Weapon Mining Laser Build | -11 -10 ------- Run | Yrd Mat Slots Evolved . | . . Power . | . . Propulsion . | . . Utility . | . . Weapon . | . . Parts Attached 28 | 6 22 Power 5 | 1 4 Engine 5 | 1 4 Core . | . . Reactor . | . . Propulsion 8 | 2 6 Treads 5 | 2 3 Leg 3 | . 3 Wheel . | . . Hover . | . . Flight . | . . Utility 5 | 1 4 Device 1 | . 1 Storage 2 | 1 1 Processor 1 | . 1 Hackware . | . . Protection 1 | . 1 Artifact . | . . Weapon 10 | 2 8 Energy Gun 5 | 2 3 Energy Cannon . | . . Ballistic Gun 2 | . 2 Ballistic Cannon . | . . Launcher 1 | . 1 Special Weapon 2 | . 2 Impact Weapon . | . . Slashing Weapon . | . . Piercing Weapon . | . . Special Melee Weapon . | . . Unidentified Prototypes . | . . Parts Lost 6 | . 6 Power 1 | . 1 Propulsion 2 | . 2 Utility 1 | . 1 Weapon 2 | . 2 Highest Loss Streak 5 | . 5 To Critical Strikes . | . . Average Backups 8 | 4 8 Power . | . . Propulsion 1 | 1 1 Utility 3 | 1 3 Weapon 2 | . 2 Tool/Special . | . . Unused Backups 16 | 2 14 Power . | . . Propulsion 7 | 2 5 Utility 7 | . 7 Weapon 2 | . 2 Tool/Special . | . . Average Slot Usage (%) 93 | . 93 Engine 13 | . 13 Treads 19 | . 19 Leg 5 | . 5 Device 9 | . 9 Storage 13 | . 13 Protection 1 | . 1 Energy Gun 8 | . 8 Ballistic Gun 12 | . 12 Launcher 5 | . 5 Special Weapon 2 | . 2 Peak Build Rating 8 | 7 8 Average Rating 7 | 5 7 On Entrance 3 | . 6 Avg Prop Armor Cover (%) . | . . Naked Turns . | . . Heaviest Build 23 | 13 23 Greatest Support 40 | 40 40 Greatest Overweight (x) 3 | 3 3 Average Overweight (x) . | . . Largest Inventory Capacity 10 | 8 10 Average Capacity 9 | 7 9 Most Carried 10 | 8 10 Average Carried 8 | 4 8 Final Capacity 10 | 8 10 Final Carried 10 | 7 10 Class Distribution -------------------- 62% | Mutant 37% | Scavenger-Mutant Dominant Class ---------------- Mutant | -10/Materials Resources | -11 -10 ----------- Run | Yrd Mat Matter Collected 849 | 260 589 Remotely . | . . Salvage Created 1149 | 158 991 Parts 81 | 9 72 Haulers Intercepted 2 | . 2 Recyclers Shooed . | . . Parts Field Recycled . | . . Retrieved Matter . | . . Parts Self-Destructed . | . . Prevented . | . . Parts Restored . | . . Kills | -11 -10 ------- Run | Yrd Mat Combat Hostiles Destroyed 26 | . 26 Guns 22 | . 22 Cannons 1 | . 1 AOE 3 | . 3 Classes Destroyed 9 | 2 7 Worker 4 | . 4 Builder 1 | . 1 Tunneler 3 | 3 . Hauler 2 | . 2 Recycler 1 | 1 . Operator 1 | . 1 Watcher 3 | . 3 Swarmer 9 | . 9 Grunt 17 | . 17 Best Kill Streak 6 | 3 6 Combat Bots Only 6 | . 6 Max Kills in Single Turn 2 | 1 2 Gunslinging . | . . Exploded 2 | . 2 Melee . | . . Uniques/NPCs Destroyed . | . . Combat | -11 -10 -------- Run | Yrd Mat Hostile Shots Fired 158 | . 158 Missed 35 | . 35 Hits 123 | . 123 Projectile 123 | . 123 Damage Taken 1335 | . 1335 Core 259 | . 259 Absorbed by Shields . | . . Regen/Repaired (Parts) 63 | . 63 Core Remaining (%) 100 | 100 . Volleys Fired 107 | 4 103 Largest 2 | 2 2 Hottest 120 | 90 120 Shots Fired 199 | 8 191 Gun 185 | 8 177 Cannon . | . . Launcher 5 | . 5 Special 9 | . 9 Kinetic 100 | . 100 Thermal 94 | 8 86 Explosive 5 | . 5 Electromagnetic . | . . Robot Hit Streak 7 | 3 7 Robot Miss Streak 4 | 1 4 Penetration Max . | . . Secondary Targets 5 | . 5 Max Gunslinging Chain 1 | . 1 Shots Hit Robots 127 | 6 121 Core Hits 69 | 5 64 Critical Kills . | . . Critical Parts Destroyed . | . . Critical Strikes 2 | . 2 Burn 2 | . 2 Melee Attacks . | . . Impact . | . . Slashing . | . . Piercing . | . . Sneak Attacks . | . . Combat Hostiles . | . . Follow-up Attacks . | . . Damage Inflicted 1796 | 73 1723 Guns 1396 | 73 1323 Cannons . | . . Explosions 301 | . 301 Melee . | . . Ramming 3 | . 3 Kinetic 708 | . 708 Thermal 784 | 73 711 Explosive 301 | . 301 Electromagnetic . | . . Impact . | . . Slashing . | . . Piercing . | . . Highest Corruption 1 | . 1 Average Corruption 1 | . 1 Corruption Purged . | . . Corruption Blocked . | . . Effects 8 | . 8 Message Errors 2 | . 2 Matter Fused 1 | . 1 Energy Discharges 2 | . 2 Data Loss (minor) 1 | . 1 Weapon Failures 2 | . 2 Overload Shots . | . . Overflow Damage . | . . Projectiles . | . . Explosions . | . . Melee . | . . Knockbacks . | . . Impact . | . . Kinetic . | . . Secondary . | . . Self-Inflicted Damage 21 | . 21 Shots 1 | . 1 Rammed 1 | . 1 Targets Rammed 1 | . 1 Kicked . | . . Crushed . | . . Highest Temperature 473 | 60 473 Average Temperature 112 | 24 117 Received Heat Transfer 600 | . 600 Effects 7 | . 7 Shutdowns 1 | . 1 Matter Decay 2 | . 2 Damage (major) 4 | . 4 Siege Activations . | . . Martial Activations . | . . Shielding Activations . | . . Robots Disrupted . | . . Combat Hostiles . | . . Robots Corrupted . | . . Combat Hostiles . | . . Parts Fried . | . . Impact Corruptions . | . . Robots Melted . | . . Combat Hostiles . | . . Parts Melted 8 | 2 6 Heat Transferred 2254 | 186 2068 Parts Sabotaged . | . . Parts Stolen . | . . Parts Stripped . | . . Power Chain Reactions . | . . Alert | -11 -10 ------- Run | Yrd Mat Maximum Alert Level 1 | . 1 Low Security (%) 70 | 100 67 Level 1 29 | . 32 Level 2 . | . . Level 3 . | . . Level 4 . | . . Level 5 . | . . High Security . | . . Max Security . | . . Peak Influence 271 | 10 271 Initial . | . . Average 101 | . 109 Influence Increases 887 | 20 867 Destroy 0b10 Robot/C 520 | . 520 Destroy 0b10 Robot/NC 75 | 20 55 Destroy Leader 120 | . 120 Successful Hack 46 | . 46 Select Force Hacks 60 | . 60 Disable Machine 15 | . 15 Destroy Structure 36 | . 36 Lose Combat Pursuer 15 | . 15 Influence Decreases 627 | 20 607 Time Decay 567 | 20 547 Lost Part 60 | . 60 Squads Dispatched 9 | . 9 Investigation 6 | . 6 Extermination . | . . Reinforcement 3 | . 3 Assault . | . . Garrison . | . . Intercept . | . . Searches Triggered . | . . Construction Impeded . | . . Haulers Reinforced . | . . Active Scanning Responses . | . . Cargo Convoy Interrupts . | . . Stealth | -11 -10 --------- Run | Yrd Mat Distress Signals 3 | . 3 Communications Jammed . | . . Distress Signals . | . . Times Spotted 42 | . 42 Peak Tracking Total 5 | . 5 Tactical Retreats 1 | . 1 Traps | -11 -10 ------- Run | Yrd Mat Traps Triggered 4 | . 4 Indirectly . | . . Trap Hack Attempts . | . . Triggered . | . . Disarmed . | . . Reprogrammed . | . . Reused . | . . Traps Extracted . | . . Installed . | . . Triggered . | . . Machines | -11 -10 ---------- Run | Yrd Mat Machines Disabled 1 | . 1 Max in Single Turn 1 | . 1 Machines Repaired . | . . Machines Dismantled . | . . Machines Sabotaged . | . . Overloaded Fab Kills . | . . Hacking | -11 -10 --------- Run | Yrd Mat Machines Accessed 8 | . 8 Terminals 5 | . 5 Fabricators . | . . Repair Stations 1 | . 1 Recycling Units 2 | . 2 Scanalyzers . | . . Garrison Access . | . . Total Hacks 20 | . 20 Successful 13 | . 13 Failed 7 | . 7 Catastrophic 2 | . 2 Database Lockouts . | . . Manual 9 | . 9 Terminals 10 | . 10 Fabricators . | . . Repair Stations 3 | . 3 Recycling Units 7 | . 7 Scanalyzers . | . . Garrison Access . | . . Terminal Hacks 4 | . 4 Terminal Index 1 | . 1 Locate Traps 2 | . 2 Hauler Manifests 1 | . 1 Fabricator Hacks . | . . Repair Station Hacks 2 | . 2 Scan Component 1 | . 1 Repair 1 | . 1 Recycling Unit Hacks 2 | . 2 Retrieve Matter 1 | . 1 Retrieve Components 1 | . 1 Scanalyzer . | . . Garrison Access Hacks . | . . Unauthorized Hacks 5 | . 5 Terminals . | . . Fabricators . | . . Repair Stations . | . . Recycling Units 5 | . 5 Monitor 1 | . 1 Reject 1 | . 1 Mask 1 | . 1 Tunnel 2 | . 2 Scanalyzers . | . . Garrison Access . | . . Data Cores Recovered . | . . Used . | . . Hacking Detections 7 | . 7 Full Trace Events 1 | . 1 Feedback Events 1 | . 1 Corruption 1 | . 1 Feedback Blocked . | . . Robot Schematics Acquired . | . . Robots Built . | . . Authchips . | . . Time . | . . Total Robot Build Rating . | . . Part Schematics Acquired . | . . Parts Built . | . . Authchips . | . . Time . | . . Total Part Build Rating . | . . Part Studies Acquired . | . . Parts Repaired 1 | . 1 Time 26 | . 26 Parts Recycled . | . . Recycled Matter . | . . Retrieved Matter . | . . Retrieved Components . | . . Parts Scanalyzed . | . . Part Schematics Acquired . | . . Parts Damaged . | . . Bothacking | -11 -10 ------------ Run | Yrd Mat Used RIF Installer . | . . Robots Hacked . | . . Non-combat . | . . Combat . | . . Robot Hacks Applied . | . . Relay Couplers Released . | . . Fabnet Peak Effective % . | . . Robots Rewired . | . . Allies Hacked . | . . Hacks Repelled . | . . Allies | -11 -10 -------- Run | Yrd Mat Total Allies . | . . Largest Group . | . . Highest-Rated Group . | . . Highest-Rated Ally . | . . Total Orders . | . . Ally Attacks . | . . Total Damage . | . . Kills . | . . Allies Corrupted . | . . Allies Melted . | . . Intel | -11 -10 ------- Run | Yrd Mat Active Infowar (turns) 1532 | . 1532 Seismic 1532 | . 1532 Robot Analysis Total . | . . Derelict Logs Recovered . | . . Drone Launches . | . . Drone Recoveries . | . . Exploration | -11 -10 ------------- Run | Yrd Mat Turns Passed 2376 | 177 2199 Spaces Moved 997 | 92 905 Core 35 | 7 28 Treads 758 | 85 673 Legs 204 | . 204 Wheels . | . . Hover . | . . Flight . | . . Fastest Speed 50 | 50 120 Average Speed 166 | 160 167 Slowest Speed 240 | 200 240 Overloaded Moves . | . . Propulsion Burnouts . | . . Robots Hopped . | . . Potential Cave-ins . | . . Cave-ins Triggered . | . . Exploration Rate (%) 49 | 5 94 Regions Visited 1 Branch Regions . Pre-discovered Areas 2 | . 2 Known Exits Taken . | . . Unknown Exits Taken 1 | 1 . Scrap Searched . | . . Spaces Dug . | . . Terrain Destroyed 34 | . 34 Melee . | . . Projectile 2 | . 2 AOE 32 | . 32 Terrain Rammed . | . . Walls Destroyed . | . . Machines Disabled . | . . Actions | -11 -10 --------- Run | Yrd Mat Total 1501 | 112 1389 Wait 302 | . 302 Move 996 | 91 905 Hop . | . . Pick Up 33 | 9 24 Fast Attach 16 | 6 10 Attach 6 | . 6 Detach 5 | . 5 Swap 13 | . 13 Drop 22 | 2 20 Fire 107 | 4 103 Melee . | . . Ram . | . . Kick . | . . Crush 1 | . 1 Escape Stasis . | . . Rewire . | . . Trap . | . . Miscellaneous . | . . Route ------- -11/Scrapyard -10/Materials (discovered 6 exits: [*Mat x3] / [*Min x2] / *Sub) History --------- Turn | Location | Event 22 | -11/Scrapyard | Discovered new exit (range 15) 178 | -11/Scrapyard | Entered Materials 301 | -10/Materials | Build established: Mutant 656 | -10/Materials | Lost 5 parts (1p2n2w) 665 | -10/Materials | Core integrity fell below 50% 702 | -10/Materials | Discovered new exit (range 12) 1077 | -10/Materials | Discovered new exit (range 12) 1094 | -10/Materials | Build established: Scavenger-Mutant 1143 | -10/Materials | Repaired Med. Storage Unit 1309 | -10/Materials | Discovered new exit (range 13) 1649 | -10/Materials | Build established: Mutant 1956 | -10/Materials | Discovered new exit (range 16) 1971 | -10/Materials | Build established: Scavenger-Mutant 2026 | -10/Materials | Discovered new exit (range 13) 2315 | -10/Materials | Discovered new exit (range 10) 2334 | -10/Materials | Identified exit to Subcaves 2354 | -10/Materials | Build established: Mutant 2359 | -10/Materials | Core integrity fell below 20% 2377 | -10/Materials | Destroyed by G-34 Mercenary with Small Laser Last Messages --------------- reinforcements. 02026_ ALERT: Hostiles spotted, dispatching reinforcements to Terminal M008. 02026_ O-16 Technician locks terminal. 02026_ U-05 Engineer lays Concrete. 02026_ EXIT=FOUND 02029_ DLB%KPEHC9A QWJA8BY Q,Q62U<0NJ 02044_ TF Node disabled. 02044_ Sensor Array tumbles out of TF Node. 02044_ Signal Interpreter tumbles out of TF Node. 02052_ Dropped Grenade Launcher. 02053_ Dropped Visual Processing Unit. 02053_ Acquired Sensor Array. 02056_ Acquired Signal Interpreter. 02315_ EXIT=FOUND 02333_ Connecting with D.C.S.S. Altar Unit... 02334_ EXIT=IDENTIFIED: SUBCAVES 02349_ System corrupted: Matter fused (-7). 02367_ G-34 Mercenary destroyed. Map ----- +----------------------------------------------------+ | | | | | | | | | ???????????????????????????????????????? | | ???????????????????????????????????????? | | ???????????????????????????????????????? | | ???????????????????????????????????????? | | ???????????????????????????????????????? | | ??????????????????????????????"""#?????? | | ????????????????????????????#"!!!"#????? | | ????????????????????????????"" ""#???? | | ???????????????????????????? #???? | | ????????????????????????????? < #???? | | ????????????????????????????? #???? | | ????????????????????########? ????? | | ????????????????????# #? ?????? | | ?######?????????????# #?# ##????? | | #?????????????# """ #?# T#????? | | T #?????????????# """ #?# #?????? | | *#?????????????# """ =#?# #?????? | | ?######?????????????# ### ##????? | | ?????#####################+## #????? | | ###### ] #????? | | ! #????? | | t @g #????? | | ##############;/## #????? | | ###### #??????????# ;###+#####??? | | ####### ##########??# # #??? | | # #= """ #??# # #??? | | # [ #=* "Y" #??# # """ #??? | | + + [ " " #??# # """"" #??? | | " """ # %#*[ #??# # """"" #??? | | " """ # #= """ #??# # """"" #??? | | " """?# # """ #??# # """ #??? | | ?# # ] """ =#??##X#># ] ? #??? | | ??# # """ #???##### ???? #??? | | ####??# # #???????##???????#??? | | ??????# ##########???????????????????? | | ??????# ############?????????????????? | | #####?# ## #?????????????????? | | #"""### ## "" #?????????????????? | | #"T"## # "" """ #?????????????????? | | # "T """ #?????????????????? | | + "" """ #?????????????????? | | "" # "" ##########????????? | | "" # = #*=**=[ #????????? | | %"T """ # #= [*""" #????????? | | %"" """ #######+###[*==""" #????????? | | "" """ ##### #!==!""" #????????? | +----------------------------------------------------+ Best States ------------- Heat Dissipation 25 Energy Generation 10 Energy Capacity 250 Matter Stores 300 Matter Capacity 300 Sight Range 16 Terrain Scan Density 10 Armor Coverage 150 Evasion (%) 50 Recoil Reduction 2 Item Schematics ----------------- None Robot Schematics ------------------ None Fabricated ------------ Nothing Repaired ---------- Med. Storage Unit | 74% | -10/Materials Studied --------- None Alien Tech Used ----------------- None Achievements -------------- None Challenges ------------ None Game ------ Seed SuspensionStrikeCorpse Manual? 0 Play Time 00:27:36 Cumulative 14.4 hours Start 2026.09.24 @ 14:52:50 End 2026.09.24 @ 15:38:59 Sessions 1 Manual Loads 0 Difficulty Rogue Special Mode None Game No. 12 Rogue 12 Adventurer 0 Explorer 0 Win Type - Total 0 Types 0/0/0/0/0/0/0/0/0/0 Lore% 17 Gallery% 19 Achievement% 20 Wizard Run 0 Options --------- Layout 1 ASCII 0 Keyboard 1 Movement Vi Keybinds 0 Fullscreen 1 Font 24/Smallcaps Map View 50x35 Zoom Use 0% Tactical HUD 1 Map Filters NONE Filters NONE Steam 1 RUN: 85e45bc3-ccf7-4bbf-978f-9fac9db8e570